Cogmind - Beta 16 @@@ ROGUE MODE // 2025.12.17 @ 20:28:55 Player: FretfulMantis Result: Destroyed by Y-54 Guardian with Gatling Laser Performance ------------- Evolutions (0) 0 Regions Visited (3) 600 Robots Destroyed (25) 125 Value Destroyed (686) 686 Prototype IDs (12) 240 Alien Tech Used (0) 0 Bonus (0) 0 TOTAL SCORE: 1651 Bonus ------- None Cogmind --------- Core Integrity 0/250 Matter 236/300 Energy 75/100 System Corruption 0% Temperature Hot (234) Movement Core (150) Ox2 Location -7/Recycling Parts ------- > --- POWER (1) -------- (None) > --- PROPULSION (2) --- (None) > --- UTILITY (2) ------ Makeshift Light Armor Plating Gun Armor > --- WEAPON (2) ------- (None) > --- INVENTORY (5) ---- Small Storage Unit Improved Terrain Scanner Datajack Flamer Piercing Trap Peak State ------------ > --- POWER ------------ Light Nuclear Core > --- PROPULSION ------- Wheel Subdweller Monowheel > --- UTILITY ---------- Small Storage Unit Gun Armor > --- WEAPON ----------- Barrage Gun Battle Cannon Battle Cannon Slug Cannon > --- INVENTORY -------- Subdweller Power Source Makeshift Power Source Improved Terrain Scanner Makeshift Light Armor Plating Battle Rifle Barrage Gun Datajack Scrap Shield Fragment [Rating: 29] Favorites ----------- Power Light Nuclear Core Engine Ion Engine Power Core Light Nuclear Core Propulsion Compact Wheel Wheel Compact Wheel Utility Small Storage Unit Device Subdweller Optics Storage Small Storage Unit Processor Visual Processing Unit Protection Gun Armor Weapon Barrage Gun Ballistic Gun Barrage Gun Ballistic Cannon Battle Cannon Build | -11 -10 -10 -7 ------- Run | Yrd Mat Sub Rec Slots Evolved . | . . . . Power . | . . . . Propulsion . | . . . . Utility . | . . . . Weapon . | . . . . Parts Attached 24 | 7 1 14 2 Power 4 | 2 . 1 1 Engine 3 | 2 . . 1 Core 1 | . . 1 . Reactor . | . . . . Propulsion 5 | 2 . 3 . Treads . | . . . . Leg . | . . . . Wheel 5 | 2 . 3 . Hover . | . . . . Flight . | . . . . Utility 5 | 1 1 3 . Device 1 | . . 1 . Storage 1 | 1 . . . Processor 1 | . 1 . . Hackware . | . . . . Protection 2 | . . 2 . Artifact . | . . . . Weapon 10 | 2 . 7 1 Energy Gun . | . . . . Energy Cannon . | . . . . Ballistic Gun 7 | 2 . 4 1 Ballistic Cannon 3 | . . 3 . Launcher . | . . . . Special Weapon . | . . . . Impact Weapon . | . . . . Slashing Weapon . | . . . . Piercing Weapon . | . . . . Special Melee Weapon . | . . . . Unidentified Prototypes . | . . . . Parts Lost 17 | . . 9 8 Power 3 | . . 1 2 Propulsion 5 | . . 3 2 Utility . | . . . . Weapon 9 | . . 5 4 Highest Loss Streak 8 | . . 3 8 To Critical Strikes . | . . . . Average Backups 6 | 1 7 6 6 Power 1 | . 1 1 . Propulsion . | 1 2 . . Utility 2 | . 1 2 3 Weapon 1 | . 1 1 1 Tool/Special . | . . . . Unused Backups 9 | . 2 3 4 Power 1 | . . 1 . Propulsion 2 | . 2 . . Utility 3 | . . 1 2 Weapon 2 | . . 1 1 Tool/Special 1 | . . . 1 Average Slot Usage (%) 95 | . 89 95 87 Engine 7 | . 14 6 1 Core 5 | . . 5 8 Wheel 23 | . 28 23 19 Device 1 | . . 1 . Storage 12 | . 14 12 10 Processor 2 | . 4 2 . Protection 7 | . . 7 14 Ballistic Gun 19 | . 28 18 21 Ballistic Cannon 13 | . . 15 10 Peak Build Rating 29 | 6 9 29 26 Average Rating 18 | 4 7 19 24 On Entrance 10 | . 6 9 26 Avg Prop Armor Cover (%) 2 | . . 2 3 Naked Turns . | . . . . Heaviest Build 30 | 13 13 30 23 Greatest Support 32 | 32 32 32 20 Greatest Overweight (x) 7 | . . 7 1 Average Overweight (x) . | . . . . Largest Inventory Capacity 8 | 8 8 8 8 Average Capacity 7 | 6 8 8 7 Most Carried 8 | 5 8 8 8 Average Carried 7 | 1 7 7 7 Final Capacity 8 | 8 8 8 5 Final Carried 8 | 5 8 8 5 Class Distribution -------------------- 53% | Mutant 25% | Gunner 21% | Derelict-Gunner Dominant Class ---------------- Mutant | -10/Materials Mutant | -10/Subcaves Gunner | -7/Recycling Resources | -11 -10 -10 -7 ----------- Run | Yrd Mat Sub Rec Matter Collected 1025 | 266 42 717 . Remotely . | . . . . Salvage Created 605 | 23 45 490 47 Parts 33 | 3 3 27 . Haulers Intercepted . | . . . . Recyclers Shooed 1 | . 1 . . Parts Field Recycled . | . . . . Retrieved Matter . | . . . . Parts Self-Destructed 17 | . . 17 . Prevented . | . . . . Parts Restored . | . . . . Kills | -11 -10 -10 -7 ------- Run | Yrd Mat Sub Rec Combat Hostiles Destroyed 21 | . 2 18 1 Guns 9 | . 2 6 1 Cannons 12 | . . 12 . Classes Destroyed 6 | 1 2 2 1 Builder 1 | . 1 . . Tunneler 1 | 1 . . . Turret 2 | . . 2 . Swarmer 8 | . 2 6 . Sentry 1 | . . . 1 Subdweller 12 | . . 12 . Best Kill Streak 4 | 1 2 4 1 Combat Bots Only 4 | . 2 4 1 Max Kills in Single Turn 2 | 1 1 2 1 Gunslinging . | . . . . Exploded . | . . . . Melee . | . . . . Uniques/NPCs Destroyed . | . . . . Combat | -11 -10 -10 -7 -------- Run | Yrd Mat Sub Rec Hostile Shots Fired 241 | . 7 96 138 Missed 74 | . 2 35 37 Hits 167 | . 5 61 101 Projectile 167 | . 5 61 101 AOE 3 | . . 3 . Critical Strikes 2 | . . 2 . Damage Taken 2042 | . 53 1216 773 Core 250 | . 8 99 143 Absorbed by Shields . | . . . . Core Remaining (%) 100 | 100 . . . Volleys Fired 77 | 1 7 62 7 Largest 4 | 2 2 4 3 Hottest 134 | 40 40 134 89 Shots Fired 186 | 2 14 152 18 Gun 104 | 2 14 76 12 Cannon 82 | . . 76 6 Launcher . | . . . . Special . | . . . . Kinetic 186 | 2 14 152 18 Thermal . | . . . . Explosive . | . . . . Electromagnetic . | . . . . Robot Hit Streak 8 | 1 6 7 8 Robot Miss Streak 5 | . 2 5 1 Penetration Max . | . . . . Secondary Targets 1 | . 1 . . Max Gunslinging Chain 1 | . 1 . . Shots Hit Robots 95 | 1 9 73 12 Core Hits 30 | 1 5 22 2 Critical Kills 2 | . . 2 . Critical Parts Destroyed 1 | . . 1 . Critical Strikes 7 | . . 7 . Destroy 5 | . . 5 . Blast 2 | . . 2 . Melee Attacks . | . . . . Impact . | . . . . Slashing . | . . . . Piercing . | . . . . Sneak Attacks . | . . . . Combat Hostiles . | . . . . Follow-up Attacks . | . . . . Damage Inflicted 1646 | 12 98 1309 227 Guns 698 | 12 95 423 168 Cannons 945 | . . 886 59 Explosions . | . . . . Melee . | . . . . Ramming 3 | . 3 . . Kinetic 1643 | 12 95 1309 227 Thermal . | . . . . Explosive . | . . . . Electromagnetic . | . . . . Impact . | . . . . Slashing . | . . . . Piercing . | . . . . Highest Corruption . | . . . . Average Corruption . | . . . . Corruption Purged . | . . . . Corruption Blocked . | . . . . Overload Shots . | . . . . Overflow Damage 17 | . . 17 . Projectiles 17 | . . 17 . Explosions . | . . . . Melee . | . . . . Knockbacks 2 | . . 2 . Impact . | . . . . Kinetic 2 | . . 2 . Secondary . | . . . . Self-Inflicted Damage 1 | . 1 . . Shots . | . . . . Rammed 2 | . 2 . . Targets Rammed 2 | . 2 . . Kicked . | . . . . Crushed . | . . . . Highest Temperature 262 | . 6 36 262 Average Temperature 58 | . 6 12 134 Received Heat Transfer 378 | . 6 138 234 Siege Activations . | . . . . Martial Activations . | . . . . Shielding Activations . | . . . . Robots Disrupted . | . . . . Combat Hostiles . | . . . . Robots Corrupted . | . . . . Combat Hostiles . | . . . . Parts Fried . | . . . . Impact Corruptions . | . . . . Robots Melted . | . . . . Combat Hostiles . | . . . . Parts Melted . | . . . . Heat Transferred . | . . . . Parts Sabotaged . | . . . . Parts Stolen . | . . . . Parts Stripped . | . . . . Power Chain Reactions . | . . . . Alert | -11 -10 -10 -7 ------- Run | Yrd Mat Sub Rec Maximum Alert Level . | . . . . Low Security (%) 100 | 100 100 . 100 Level 1 . | . . . . Level 2 . | . . . . Level 3 . | . . . . Level 4 . | . . . . Level 5 . | . . . . High Security . | . . . . Max Security . | . . . . Peak Influence 40 | 5 40 . 30 Initial 30 | . . . 30 Average 10 | . 11 . 16 Influence Increases 281 | 5 55 200 21 Destroy 0b10 Robot/C 220 | . 40 160 20 Destroy 0b10 Robot/NC 10 | 5 5 . . Destroy Leader 20 | . 10 10 . Destroy Structure 1 | . . . 1 Lose Combat Pursuer 30 | . . 30 . Influence Decreases 281 | 5 50 142 84 Entered New Map 36 | . . 3 33 Time Decay 174 | 5 50 99 20 Lost Part 71 | . . 40 31 Squads Dispatched 1 | . 1 . . Investigation 1 | . 1 . . Extermination . | . . . . Reinforcement . | . . . . Assault . | . . . . Garrison . | . . . . Intercept . | . . . . Searches Triggered . | . . . . Construction Impeded . | . . . . Haulers Reinforced . | . . . . Active Scanning Responses . | . . . . Cargo Convoy Interrupts . | . . . . Stealth | -11 -10 -10 -7 --------- Run | Yrd Mat Sub Rec Distress Signals 2 | . 2 . . Communications Jammed . | . . . . Distress Signals . | . . . . Times Spotted 32 | . 6 23 3 Peak Tracking Total 5 | . 4 5 3 Tactical Retreats 1 | . . 1 . Traps | -11 -10 -10 -7 ------- Run | Yrd Mat Sub Rec Traps Triggered 1 | . . 1 . Indirectly . | . . . . Trap Hack Attempts . | . . . . Triggered . | . . . . Disarmed . | . . . . Reprogrammed . | . . . . Reused . | . . . . Traps Extracted . | . . . . Installed . | . . . . Triggered . | . . . . Most Traps Carried 1 | . . 1 1 Machines | -11 -10 -10 -7 ---------- Run | Yrd Mat Sub Rec Machines Disabled 3 | . . 3 . Max in Single Turn 1 | . . 1 . Machines Repaired . | . . . . Machines Dismantled . | . . . . Machines Sabotaged . | . . . . Overloaded Fab Kills . | . . . . Hacking | -11 -10 -10 -7 --------- Run | Yrd Mat Sub Rec Machines Accessed 6 | . 2 3 1 Terminals 3 | . 2 . 1 Fabricators . | . . . . Repair Stations . | . . . . Recycling Units . | . . . . Scanalyzers . | . . . . Garrison Access . | . . . . Total Hacks 16 | . 3 12 1 Successful 12 | . . 12 . Failed 4 | . 3 . 1 Catastrophic 1 | . 1 . . Database Lockouts . | . . . . Manual 2 | . 2 . . Terminals 4 | . 3 . 1 Fabricators . | . . . . Repair Stations . | . . . . Recycling Units . | . . . . Scanalyzers . | . . . . Garrison Access . | . . . . Terminal Hacks 12 | . . 12 . Record 9 | . . 9 . Open Door 1 | . . 1 . Proto ID Catalog 1 | . . 1 . Release Object 1 | . . 1 . Fabricator Hacks . | . . . . Repair Station Hacks . | . . . . Recycling Unit Hacks . | . . . . Scanalyzer . | . . . . Garrison Access Hacks . | . . . . Unauthorized Hacks . | . . . . Terminals . | . . . . Fabricators . | . . . . Repair Stations . | . . . . Recycling Units . | . . . . Scanalyzers . | . . . . Garrison Access . | . . . . Data Cores Recovered 1 | . 1 . . Used 1 | . 1 . . Hacking Detections 2 | . 2 . . Full Trace Events . | . . . . Feedback Events . | . . . . Feedback Blocked . | . . . . Robot Schematics Acquired . | . . . . Robots Built . | . . . . Authchips . | . . . . Time . | . . . . Total Robot Build Rating . | . . . . Part Schematics Acquired . | . . . . Parts Built . | . . . . Authchips . | . . . . Time . | . . . . Total Part Build Rating . | . . . . Part Studies Acquired . | . . . . Parts Repaired . | . . . . Time . | . . . . Parts Recycled . | . . . . Recycled Matter . | . . . . Retrieved Matter . | . . . . Retrieved Components . | . . . . Parts Scanalyzed . | . . . . Part Schematics Acquired . | . . . . Parts Damaged . | . . . . Bothacking | -11 -10 -10 -7 ------------ Run | Yrd Mat Sub Rec Used RIF Installer . | . . . . Robots Hacked . | . . . . Non-combat . | . . . . Combat . | . . . . Robot Hacks Applied . | . . . . Relay Couplers Released . | . . . . Fabnet Peak Effective % . | . . . . Robots Rewired . | . . . . Allies Hacked . | . . . . Hacks Repelled . | . . . . Allies | -11 -10 -10 -7 -------- Run | Yrd Mat Sub Rec Total Allies . | . . . . Largest Group . | . . . . Highest-Rated Group . | . . . . Highest-Rated Ally . | . . . . Total Orders . | . . . . Ally Attacks . | . . . . Total Damage . | . . . . Kills . | . . . . Allies Corrupted . | . . . . Allies Melted 1 | . . 1 . Intel | -11 -10 -10 -7 ------- Run | Yrd Mat Sub Rec Active Infowar (turns) 711 | . 62 649 . Optics 711 | . 62 649 . Robot Analysis Total . | . . . . Derelict Logs Recovered 1 | . . 1 . Drone Launches . | . . . . Drone Recoveries . | . . . . Exploration | -11 -10 -10 -7 ------------- Run | Yrd Mat Sub Rec Turns Passed 2329 | 65 191 2015 58 Spaces Moved 1839 | 50 155 1605 29 Core 42 | 3 . 39 . Treads . | . . . . Legs . | . . . . Wheels 1797 | 47 155 1566 29 Hover . | . . . . Flight . | . . . . Fastest Speed 50 | 50 100 90 110 Average Speed 107 | 97 100 108 119 Slowest Speed 400 | 100 100 400 120 Overloaded Moves . | . . . . Propulsion Burnouts . | . . . . Robots Hopped . | . . . . Potential Cave-ins . | . . . . Cave-ins Triggered . | . . . . Exploration Rate (%) 37 | 3 40 94 14 Regions Visited 3 Branch Regions 2 Pre-discovered Areas 1 | . . 1 . Known Exits Taken . | . . . . Unknown Exits Taken 3 | 1 1 1 . Scrap Searched 7 | . . 7 . Spaces Dug . | . . . . Terrain Destroyed 14 | . . 13 1 Melee . | . . . . Projectile 14 | . . 13 1 AOE . | . . . . Terrain Rammed . | . . . . Walls Destroyed . | . . . . Machines Disabled . | . . . . Actions | -11 -10 -10 -7 --------- Run | Yrd Mat Sub Rec Total 2046 | 61 178 1768 39 Wait 66 | . 7 59 . Move 1836 | 49 154 1604 29 Hop . | . . . . Pick Up 22 | 4 5 13 . Fast Attach 16 | 6 1 9 . Attach 8 | . . 6 2 Detach 4 | . . 4 . Swap 2 | 1 . . 1 Drop 13 | . 2 11 . Fire 77 | 1 7 62 7 Melee . | . . . . Ram 2 | . 2 . . Kick . | . . . . Crush . | . . . . Escape Stasis . | . . . . Rewire . | . . . . Trap . | . . . . Miscellaneous . | . . . . Route ------- -11/Scrapyard -10/Materials (discovered 4 exits: [*Mat] / [*Min x2] / *Sub) -10/Subcaves (discovered 2 exits: [*Mat] / *Rec) -7/Recycling History --------- Turn | Location | Event 12 | -11/Scrapyard | Discovered new exit (range 15) 66 | -11/Scrapyard | Entered Materials 67 | -10/Materials | Met a group of wandering Federalists 132 | -10/Materials | Discovered new exit (range 15) 145 | -10/Materials | Discovered new exit (range 7) 242 | -10/Materials | Discovered new exit (range 17) 253 | -10/Materials | Discovered new exit (range 6) 257 | -10/Materials | Entered Subcaves 257 | -10/Subcaves | Accompanied by 1 ally 258 | -10/Subcaves | Continued accompanying wandering Federalists (1) 316 | -10/Subcaves | Build established: Mutant 489 | -10/Subcaves | Ambushed by Subdweller buried in earth 518 | -10/Subcaves | Lost 3 allies 917 | -10/Subcaves | Learned location of Zion (-6) 1078 | -10/Subcaves | Visited 4L-MR0's lab 1110 | -10/Subcaves | Found Gun Armor 1111 | -10/Subcaves | Attached Gun Armor, gained temporary slots: Weapon x2 1179 | -10/Subcaves | Discovered new exit (range 9) 1242 | -10/Subcaves | Disturbed a concealed Subdweller 1280 | -10/Subcaves | Lost 3 parts (1p1n1w) 1302 | -10/Subcaves | Shifting Twisted Machinery released Battle Cannon 1314 | -10/Subcaves | Shifting Twisted Machinery released Sub. Monowheel 1320 | -10/Subcaves | Shifting Twisted Machinery released Sub. Shrapnel Launcher 1611 | -10/Subcaves | Shifting Twisted Machinery released Sub. Laser 1724 | -10/Subcaves | Shifting Twisted Machinery released Mak. Hacking Suite 1767 | -10/Subcaves | Build established: Derelict-Gunner 2185 | -10/Subcaves | Discovered new exit (range 10) 2253 | -10/Subcaves | Build established: Gunner 2272 | -10/Subcaves | Entered Recycling 2314 | -7/Recycling | Core integrity fell below 50% 2328 | -7/Recycling | Core integrity fell below 20% 2330 | -7/Recycling | Destroyed by Y-54 Guardian with Gatling Laser Last Messages --------------- 02192_ Acquired 2 matter. 02193_ Acquired 17 matter. 02194_ Acquired 18 matter. 02199_ Acquired 15 matter. LOCATION=UNKNOWN GOAL=ESCAPE 02286_ Connecting with Terminal... 02286_ Current location identified: Recycling 02307_ Y-54 Guardian springs to life. 02310_ Lgt. Nuclear Core destroyed. 02317_ Barrage Gun destroyed. 02319_ Sub. Monowheel destroyed. 02324_ Barrage Gun destroyed. 02324_ Sub. Power Source destroyed. 02324_ Y-54 Guardian destroyed. 02325_ Broken Sub. Monowheel destroyed. 02325_ Battle Cannon destroyed. 02327_ Temporary Weapon slot lost. 02328_ Battle Rifle destroyed. 02328_ R-06 Scavenger destroyed. Map ----- +----------------------------------------------------+ | ????????????????????????????????? | | ????????????????????????????????? | | ????????????????????????????????? | | ????????????????????????????????? | | ????????????????????????????????? | | ????????????????????????????????? | | ????????????????????????????????? | | ????????????????????????????????? | | ????????????????????????????????? | | ????????????????????????????????? | | ????????????????????????????????? | | ????????????????????????????????? | | ????????????????????????????????? | | ????????????????????????????????? | | ????????????????????????????????? | | ????????????????????????????????? | | ????????????????????????????????? | | ????????????????????????????????? | | ????#######????#????????????????? | | ????# #### ?????????????????? | | ????# ??????????????????? | | ????# ???????????????????? | | ????# ????????????????????? | | ????# % #?????????????????????? | | ?????# YY##?????????????????????? | | ?????# @%#?????????????????????? | | ?????# ;#?????????????????????? | | ?????# ! ###############????????? | | ?????# % ## ! #????????? | | ?????# = ## ! ! #????????? | | ?????# ## #????????? | | ?????# ## #????????? | | ?????# ## #????????? | | ????## ## #????????? | | ????# # #????????? | | ????# T" # ! #????????? | | ????# " + !! ! #????????? | | ????# # ! #????????? | | ????# # !! #????????? | | ????## ## ! #????????? | | ?????# ###########+###????????? | | ?????# #??????????????????????? | | ?????# #??????????????????????? | | ?????# #??????????????????????? | | ?????# #########??????????????? | | ?????# ???????? | | ?????# #########??????????????? | | ?????# #??????????????????????? | | ?????# #??????????????????????? | | ?????#####??????????????????????? | +----------------------------------------------------+ Best States ------------- Heat Dissipation 25 Energy Generation 15 Energy Capacity 250 Matter Stores 300 Matter Capacity 300 Sight Range 21 Terrain Scan Density 10 Armor Coverage 160 Evasion (%) 42 Item Schematics ----------------- None Robot Schematics ------------------ None Fabricated ------------ Nothing Repaired ---------- Nothing Studied --------- None Alien Tech Used ----------------- None Achievements -------------- Do Not Disturb Mistaken Identity Challenges ------------ None Game ------ Seed WarpHardlightFlakker Manual? 0 Play Time 00:19:05 Cumulative 46.8 hours Start 2025.12.17 @ 20:10:01 End 2025.12.17 @ 20:28:55 Sessions 1 Manual Loads 0 Difficulty Rogue Special Mode None Game No. 56 Rogue 56 Adventurer 0 Explorer 0 Win Type - Total 2 Types 2/0/0/0/0/0/0/0/0/0 Lore% 37 Gallery% 40 Achievement% 31 Wizard Run 0 Options --------- Layout 0 ASCII 0 Keyboard 1 Movement Numpad Keybinds 0 Fullscreen 1 Font 24/Smallcaps Map View 76x50 Zoom Use 0% Tactical HUD 1 Map Filters NONE Filters NONE Steam 1 RUN: 1a42732d-aee6-483a-a8a7-864b55040031